bitfinex/quotes_ETHUSD_20250616
["timestamp","ask_amount","ask_price","bid_price","bid_amount"]
[1750070967261,0.7963,2617.8,2617.7,3.82007577]
[1750070967740,0.02,2617.9,2617.8,3.82000152]
[1750070969130,0.02,2617.9,2617.8,10.27100152]
[1750070971570,0.02,2617.9,2617.8,11.99800152]
[1750070975282,0.045,2617.9,2617.8,12.18840152]
[1750070978194,0.045,2617.9,2617.8,12.73840152]
[1750070978557,0.045,2617.9,2617.8,12.17040152]
[1750070978893,0.045,2617.9,2617.8,12.72040152]
[1750070979255,0.045,2617.9,2617.8,12.53000152]
[1750070979446,0.045,2617.9,2617.8,13.31040152]
[1750070982689,9.07293606,2617.9,2617.7,3.82007827]
[1750070982845,11.73329361,2617.8,2617.6,10.23822043]
[1750070983047,10.826,2617.8,2617.7,3.82014745]
[1750070983561,10.826,2617.8,2617.6,10.23822479]
[1750070983873,0.045,2617.9,2617.6,10.23827143]
[1750070984073,0.045,2617.9,2617.7,3.82006943]
[1750070984283,0.045,2617.9,2617.8,6.436]
[1750070984854,9.07293606,2617.9,2617.8,6.436]
[1750070985081,10.53356596,2617.9,2617.8,6.436]
[1750070985353,10.0,2617.8,2617.7,6.434]
[1750070985778,10.0,2617.8,2617.7,10.25414745]
[1750070985979,10.0,2617.8,2617.7,6.434]
[1750070986483,10.0,2617.8,2617.7,10.25414745]
[1750070986786,0.045,2617.9,2617.7,10.25414745]
[1750070987083,0.045,2617.9,2617.8,3.82000152]
[1750070987253,0.045,2617.9,2617.7,10.25408064]
[1750070988167,0.045,2617.9,2617.7,3.82008064]
[1750070988352,0.045,2617.9,2617.8,6.427]
[1750070988768,0.045,2617.9,2617.8,10.24700152]
[1750070989954,0.045,2617.9,2617.7,6.426]
[1750070990194,0.7876,2617.8,2617.0,3.82108401]
[1750070990395,10.0,2617.0,2616.7,11.01]
[1750070990563,10.0,2617.0,2616.6,6.446]
[1750070990564,9.02793606,2616.8,2616.6,6.446]
[1750070990769,10.0,2616.7,2616.6,6.446]
[1750070992055,10.0,2616.7,2616.6,10.26775342]
[1750070992371,10.0,2616.7,2616.6,6.446]
[1750070992566,10.0,2616.7,2616.6,10.26775342]
[1750070992787,0.7894,2616.4,2615.3,0.7869]
[1750070992996,9.02793606,2615.9,2615.6,3.82317966]
[1750070993159,7.62402581,2616.4,2615.9,3.82265488]
[1750070993507,10.0,2616.3,2615.9,3.8227761]
[1750070994007,14.98707946,2616.4,2615.9,10.28170615]
[1750070994172,11.16502581,2616.4,2615.9,6.459]
[1750070994374,11.16502581,2616.4,2616.1,3.82247633]
[1750070995093,11.16502581,2616.4,2616.0,10.28256944]
[1750070995271,18.03473505,2616.4,2616.0,6.46]
[1750070995471,23.24054957,2616.4,2616.0,10.28261329]
[1750070995976,23.24054957,2616.4,2616.0,6.46]
[1750070996280,27.06260421,2616.4,2616.0,6.46]
[1750070996596,0.773,2616.2,2615.1,0.02]
[1750070996760,10.0,2616.0,2615.6,3.8231229]
[1750070997104,12.85042293,2616.1,2615.3,6.462]
[1750070997105,10.0,2616.1,2615.7,3.8230403]
[1750070997266,10.0,2616.1,2615.6,3.82314352]
[1750070997460,9.99590128,2616.1,2615.7,3.82304435]
[1750070998295,13.81841333,2616.1,2615.6,10.33314438]
[1750070998499,9.99590128,2616.1,2615.6,10.33314438]
[1750070999670,9.99590128,2616.1,2615.7,3.82306839]
[1750071000165,10.18630128,2616.1,2615.7,3.82306839]
[1750071001201,10.18630128,2616.1,2615.8,3.82292195]
[1750071001402,10.18630128,2616.1,2615.7,3.86122793]
[1750071002001,10.18630128,2616.1,2615.8,3.82292106]
[1750071002382,10.18630128,2616.1,2615.7,3.86124405]
[1750071002789,10.18630128,2616.1,2615.8,3.8229106]
[1750071003470,0.1904,2616.1,2615.9,3.82274418]
[1750071003800,11.36612581,2616.4,2616.0,3.82262996]
[1750071003977,2.03866269,2616.3,2616.0,3.82262028]
[1750071004300,0.9905,2616.4,2616.2,3.82233774]
[1750071004502,0.1904,2616.4,2615.9,6.6814]
[1750071004703,21.68017436,2616.6,2616.1,4.01281718]
[1750071004890,10.0,2616.5,2616.2,3.82226581]
[1750071005095,10.0,2616.5,2616.2,3.82231922]
[1750071005663,8.8304,2616.6,2616.2,0.03822146]
[1750071005798,0.1904,2616.7,2616.5,3.79689948]
[1750071005996,0.1904,2616.7,2616.6,3.82175342]
[1750071006484,0.7646,2616.8,2616.7,3.82160736]
[1750071006916,0.7646,2616.8,2616.6,3.82168441]
[1750071007113,0.7646,2616.8,2616.7,3.82160736]
[1750071007469,10.7646,2616.8,2616.7,3.82160736]
[1750071008100,10.0,2616.8,2616.7,3.82160736]
[1750071008413,10.0,2616.8,2616.6,3.82168866]
[1750071008774,0.37604712,2616.8,2616.7,3.82160736]
[1750071008974,10.1904,2616.9,2616.5,4.01223795]
[1750071008975,10.1904,2616.9,2616.5,0.1904]
[1750071009176,10.0,2616.6,2616.5,4.01229721]
[1750071011516,10.0,2616.6,2616.5,10.48729721]
[1750071012523,10.1904,2616.9,2616.8,3.82146132]
[1750071012729,9.79253606,2617.0,2616.8,3.82146132]
[1750071012730,0.8166,2617.3,2616.8,10.29246132]
[1750071013042,0.66666667,2617.7,2617.6,3.82029339]
[1750071013612,11.05515653,2617.7,2617.4,6.476]
[1750071013821,13.14712579,2617.7,2617.6,3.82029339]
[1750071014018,3.14712579,2617.7,2617.6,3.82029339]
[1750071014223,10.0,2617.6,2617.5,3.82036442]
[1750071014729,10.0,2617.6,2617.5,3.82043935]
[1750071015431,3.14712579,2617.7,2617.5,3.82043935]
[1750071015634,11.05515653,2617.7,2617.4,10.29651047]
[1750071015931,1.05515653,2617.7,2617.6,3.82029339]
[1750071016593,0.66666667,2617.7,2617.6,3.82029339]
[1750071017923,0.66666667,2617.7,2617.6,4.37029339]
[1750071022766,0.66666667,2617.7,2617.6,4.56069339]
[1750071023272,0.66666667,2617.7,2617.6,5.34449339]
[1750071023629,0.66666667,2617.7,2617.6,13.55049339]
[1750071025232,0.66666667,2617.7,2617.6,13.54849339]
[1750071025940,0.66666667,2617.7,2617.6,5.34449339]
[1750071026230,0.66666667,2617.7,2617.6,4.56069339]
[1750071026459,0.66666667,2617.7,2617.6,12.20769339]
[1750071027053,0.66666667,2617.7,2617.6,12.21069339]
[1750071027650,0.66666667,2617.7,2617.6,4.01069339]
[1750071027844,0.66666667,2617.7,2617.6,12.24889205]
[1750071028047,0.66666667,2617.7,2617.6,12.21069339]
[1750071029969,0.66666667,2617.7,2617.6,12.20869339]
[1750071030531,0.66666667,2617.7,2617.6,4.01069339]
[1750071030756,0.66666667,2617.7,2617.6,12.24389017]
[1750071030964,0.66666667,2617.7,2617.6,12.20569339]
[1750071032475,0.66666667,2617.7,2617.6,12.75569339]
[1750071038916,0.58567759,2617.7,2617.6,12.19269339]
[1750071039592,0.58567759,2617.7,2617.6,12.74269339]
[1750071040503,0.58567759,2617.7,2617.6,12.55229339]
[1750071043753,0.58567759,2617.7,2617.6,19.15840212]
[1750071044244,0.58567759,2617.7,2617.6,13.37459339]
[1750071044440,0.58567759,2617.7,2617.6,19.15840212]
[1750071047560,0.02,2617.9,2617.8,3.82000152]
[1750071047737,0.02,2617.9,2617.8,12.78920152]
[1750071047915,0.02,2617.9,2617.8,13.33920152]
[1750071048248,0.02,2617.9,2617.8,11.99200152]
[1750071048757,0.02,2617.9,2617.8,12.54200152]
[1750071049756,0.02,2617.9,2617.8,12.73240152]
[1750071049960,0.02,2617.9,2617.8,4.56040152]
[1750071050146,0.02,2617.9,2617.8,12.77359231]
[1750071050465,0.02,2617.9,2617.8,12.73540152]
[1750071052547,0.02,2617.9,2617.8,12.70340152]
[1750071052868,0.02,2617.9,2617.8,4.56040152]
[1750071053088,0.02,2617.9,2617.8,12.70340152]
[1750071056391,0.02,2617.9,2617.8,13.50060152]
[1750071059658,0.02,2617.9,2617.8,18.46779234]
[1750071060358,0.02,2617.9,2617.8,13.48960152]
[1750071060886,0.02,2617.9,2617.8,12.14340152]
[1750071061083,0.02,2617.9,2617.8,12.14240152]
[1750071061286,5.80380873,2617.9,2617.8,4.01040152]
[1750071061459,5.80380873,2617.9,2617.8,10.41840152]
[1750071061781,17.2527396,2617.9,2617.8,10.41840152]
[1750071062462,17.2527396,2617.9,2617.8,6.408]
[1750071062819,10.0,2617.8,2617.7,4.96719082]
[1750071062981,10.0,2617.8,2617.7,15.19932069]
[1750071063370,10.7882,2617.8,2617.7,11.37919082]
[1750071063710,0.7882,2617.8,2617.7,15.19933827]
[1750071063921,0.7882,2617.8,2617.7,8.78733827]
[1750071064102,0.7882,2617.8,2617.7,15.19733827]
[1750071064405,0.7882,2617.8,2617.7,10.23014745]
[1750071064789,0.7882,2617.8,2617.7,6.41]
[1750071065485,0.7882,2617.8,2617.7,10.23014745]
[1750071066613,0.7882,2617.8,2617.7,6.41]
[1750071066916,0.7882,2617.8,2617.7,10.23014745]
[1750071067133,0.7882,2617.8,2617.5,4.01076127]
[1750071067281,1.33611428,2617.8,2617.6,10.22026898]
[1750071068123,1.33611428,2617.8,2617.7,3.82014745]
[1750071068515,0.7882,2617.8,2617.7,3.82014745]
[1750071069522,0.7882,2617.8,2617.7,10.21614745]
[1750071070835,0.7882,2617.8,2617.7,10.21314745]
[1750071073857,0.02,2617.9,2617.8,3.82000152]
[1750071074057,0.02,2617.9,2617.8,4.01040152]
[1750071074919,0.02,2617.9,2617.8,4.04859851]
[1750071075123,0.02,2617.9,2617.8,4.01040152]
[1750071077124,10.8121,2617.9,2617.5,3.82029516]
[1750071077320,1.98379856,2617.8,2617.6,6.382]
[1750071077660,10.8121,2617.9,2617.6,10.20219051]
[1750071078545,10.8121,2617.9,2617.7,3.82013988]
[1750071078948,10.8121,2617.9,2617.6,6.382]
[1750071084794,10.8121,2617.9,2617.6,10.20227407]
[1750071084996,10.0,2617.7,2617.6,6.382]
[1750071087973,10.0,2617.7,2617.6,10.20229339]
[1750071089456,10.0,2617.7,2617.6,6.382]
[1750071089698,10.0,2617.7,2617.6,10.20229339]
[1750071090012,10.814,2617.7,2617.5,6.5494]
[1750071090303,15.78472977,2617.6,2617.5,6.5494]
[1750071090457,15.78472977,2617.6,2617.5,10.36983935]
[1750071093493,15.78472977,2617.6,2617.5,0.1904]
[1750071093828,21.64698115,2617.6,2617.5,6.351]
[1750071094010,14.63325729,2617.5,2617.2,0.1904]
[1750071094196,15.78472977,2617.3,2617.2,6.351]
[1750071095500,16.17411422,2617.3,2617.2,6.351]
[1750071095821,10.0,2617.3,2617.2,10.17187727]
[1750071096042,0.90517659,2617.8,2617.6,3.82029339]
[1750071096211,11.70077659,2617.9,2617.6,6.359]
[1750071096621,11.70077659,2617.9,2617.6,10.17929328]
[1750071096946,5.78472977,2617.8,2617.6,10.17929328]
[1750071097103,10.0,2617.7,2617.6,10.17929328]
[1750071097924,10.37948161,2617.7,2617.6,10.17929328]
[1750071098123,10.37948161,2617.7,2617.6,6.359]
[1750071098319,10.37948161,2617.7,2617.6,10.17929339]
[1750071100431,10.37948161,2617.7,2617.6,6.359]
[1750071100947,10.37948161,2617.7,2617.6,10.17929339]
[1750071101342,10.37948161,2617.7,2617.6,6.359]
[1750071101550,12.1660409,2617.7,2617.6,6.349]
[1750071101935,10.7898,2617.6,2617.5,6.349]
[1750071102130,17.48038872,2617.6,2617.5,6.349]
[1750071102754,21.30055503,2617.6,2617.5,6.349]
[1750071103058,24.08653087,2617.6,2617.5,6.349]
[1750071103265,10.0,2617.5,2617.2,3.82082773]
[1750071103566,5.78472977,2617.4,2617.3,6.349]
[1750071104144,10.0,2617.3,2617.2,3.82082773]
[1750071104352,10.0,2617.3,2617.2,11.86082773]
[1750071105470,0.90583977,2617.5,2617.4,3.82058531]
[1750071105622,0.37948161,2617.7,2617.4,6.345]
[1750071105823,0.9056904,2617.7,2617.4,6.345]
[1750071106019,0.9056904,2617.7,2617.4,10.16556457]
[1750071106224,0.9056904,2617.7,2617.5,3.82032488]
[1750071106576,1.28542173,2617.7,2617.6,6.343]
[1750071106863,0.37973133,2617.7,2617.6,10.16329339]
[1750071107024,1.9220904,2617.8,2617.6,6.343]
[1750071107224,1.9220904,2617.8,2617.7,3.82014745]
[1750071107634,7.70682017,2617.8,2617.7,3.82014745]
[1750071107842,7.70682017,2617.8,2617.6,10.16321392]
[1750071108159,7.70682017,2617.8,2617.6,10.16318916]
[1750071108462,7.70682017,2617.8,2617.7,3.82014745]
[1750071108640,1.9220904,2617.8,2617.6,6.343]
[1750071108963,7.70682017,2617.8,2617.6,10.16323047]
[1750071109463,10.84164355,2617.8,2617.5,6.34]
[1750071109667,5.78472977,2617.6,2617.5,6.34]
[1750071110034,15.78472977,2617.6,2617.4,6.339]
[1750071110362,16.88082017,2617.6,2617.4,6.339]
[1750071110961,5.78472977,2617.5,2617.4,10.15958531]
[1750071111168,5.78472977,2617.5,2617.4,10.15858531]
[1750071111662,10.9056904,2617.6,2617.5,3.82043935]
[1750071111843,10.0,2617.6,2617.5,3.82043935]
[1750071112377,10.90614578,2617.6,2617.5,3.82043935]
[1750071115370,10.0,2617.6,2617.5,3.82043935]
[1750071115669,60.0,2617.6,2617.5,3.82043935]
[1750071118538,60.0,2617.6,2617.5,10.14643935]
[1750071119357,60.90660483,2617.6,2617.5,10.14643935]
[1750071120570,66.69139552,2617.6,2617.3,0.1904]
[1750071120748,60.0,2617.6,2617.5,6.325]
[1750071120948,66.69139433,2617.6,2617.4,3.82056014]
[1750071121148,65.78472977,2617.6,2617.5,6.321]
[1750071121372,66.69158072,2617.6,2617.5,6.321]
[1750071121569,66.69158072,2617.6,2617.3,4.01106605]
[1750071121868,15.78472977,2617.4,2617.3,3.82066605]
[1750071122070,15.78472977,2617.4,2617.3,10.14066605]
[1750071122430,15.78472977,2617.4,2617.3,3.82066605]
[1750071122776,0.8119,2617.3,2617.1,5.49295679]
[1750071123074,0.8119,2617.3,2617.2,6.32]
[1750071123236,6.59662977,2617.3,2617.2,6.32]
[1750071124197,6.59662977,2617.3,2616.8,0.7548]
[1750071124198,0.7712,2617.1,2616.6,10.14072386]
[1750071124482,15.78472977,2616.7,2616.6,6.319]
[1750071125166,16.58032977,2616.7,2616.6,6.319]
[1750071125740,10.0,2616.6,2616.3,0.1904]
[1750071125935,0.90611515,2616.6,2616.3,5.68455981]
[1750071126159,15.78472977,2616.4,2616.3,12.01055981]
[1750071128311,10.0,2616.4,2616.3,12.01055981]
[1750071129904,10.0,2616.3,2615.6,11.7944]
[1750071130199,10.0,2616.3,2615.9,3.8227761]
[1750071130416,0.762,2616.4,2616.0,3.82251387]
[1750071130706,4.58405828,2616.4,2616.0,6.334]
[1750071130917,2.99145465,2616.4,2616.0,10.15654743]
[1750071131057,0.762,2616.4,2616.1,3.82241911]
[1750071131263,0.762,2616.4,2616.2,3.82228523]
[1750071131465,5.78472977,2616.3,2616.0,6.334]
[1750071131712,15.78472977,2616.1,2616.0,6.334]
[1750071131885,15.78472977,2616.1,2615.8,3.82287039]
[1750071131886,10.0,2616.0,2615.8,3.8228588]
[1750071132088,15.78472977,2615.9,2615.8,3.8228588]
[1750071132264,10.0,2615.8,2615.7,6.332]
[1750071132465,10.37433931,2615.8,2615.7,6.332]
[1750071132665,0.37433931,2615.8,2615.7,6.332]
[1750071132893,21.31716819,2615.8,2615.7,6.332]
[1750071133617,0.8237,2615.6,2615.2,0.005]
[1750071133774,10.0,2615.5,2615.2,3.82868076]
[1750071133974,10.0,2615.5,2615.2,0.005]
[1750071134200,10.0,2615.5,2615.2,3.82872099]
[1750071134565,10.0,2615.5,2615.2,0.005]
[1750071134772,10.0,2615.5,2615.3,3.82363886]
[1750071134988,10.90591248,2615.5,2615.2,3.82873638]
[1750071135390,9.94633078,2615.5,2615.2,3.82873638]
[1750071135685,9.94633078,2615.5,2615.1,0.02]
[1750071135686,0.799,2615.2,2615.1,0.02]
[1750071135990,9.8394183,2615.2,2615.1,0.02]
[1750071136202,26.66643188,2615.2,2615.1,0.02]
[1750071136610,13.80221426,2615.2,2615.1,0.02]
[1750071136811,26.2084183,2615.2,2615.1,0.02]
[1750071137215,10.7821,2615.2,2615.1,0.02]
[1750071137396,0.7821,2615.2,2615.1,0.02]
[1750071137814,14.60589932,2615.2,2615.1,0.02]
[1750071138016,20.97889932,2615.2,2615.1,0.02]
[1750071138202,23.98083108,2615.2,2615.1,0.02]
[1750071139709,14.13831569,2615.2,2615.1,0.02]
[1750071140016,14.13831729,2615.2,2615.1,0.02]
[1750071140197,20.15803176,2615.2,2615.1,0.02]
[1750071140382,10.7821,2615.2,2615.1,0.02]
[1750071140789,9.8225183,2615.2,2615.1,0.02]
[1750071140990,20.0129183,2615.2,2615.1,0.02]
[1750071141226,10.9725,2615.2,2615.1,3.84394554]
[1750071141422,10.9725,2615.2,2615.1,0.02]
[1750071141633,4.58296203,2614.2,2613.8,0.005]
[1750071141834,10.7577,2614.2,2613.8,3.83082796]
[1750071142124,10.7577,2614.2,2613.8,3.83077337]
[1750071142332,10.0,2614.2,2614.1,3.84540836]
[1750071143190,10.38401775,2614.2,2614.1,0.02]
[1750071143385,16.90942339,2614.2,2614.1,0.02]
[1750071146903,22.12457966,2614.2,2614.1,0.02]
[1750071147119,0.38401775,2614.2,2614.1,0.02]
[1750071147301,0.7571,2614.7,2614.1,3.84540836]
[1750071147505,10.0,2614.4,2614.1,3.84540836]
[1750071148211,10.0,2614.4,2614.2,3.82525939]
[1750071148598,11.39178388,2614.7,2614.4,3.82496295]
[1750071148599,16.60861053,2614.7,2614.4,3.82496295]
[1750071149037,10.0,2614.6,2614.4,3.82496295]
[1750071149689,10.0,2614.6,2614.5,3.8248231]
[1750071150618,9.42951053,2614.7,2614.6,3.82467681]
[1750071151243,19.42951053,2614.7,2614.6,3.82467681]
[1750071152247,19.0404183,2614.7,2614.6,3.82467681]
[1750071153559,19.0404183,2614.7,2614.6,4.64127681]
[1750071154126,19.0404183,2614.7,2614.6,3.82467681]
[1750071155860,9.0404183,2614.7,2614.5,3.8248231]
[1750071156362,11.0027414,2614.7,2614.4,4.01603406]
[1750071156553,11.0027414,2614.7,2614.5,3.8248071]
[1750071156739,9.0404183,2614.7,2614.5,3.8248071]
[1750071157154,10.0,2614.6,2614.5,3.8248071]
[1750071157464,10.7794,2614.6,2614.5,3.8248071]
[1750071157766,10.0,2614.6,2614.5,3.8248071]
[1750071160469,14.61600607,2614.6,2614.4,0.1912]
[1750071160764,14.61600607,2614.6,2614.1,0.02]
[1750071160765,10.0,2614.4,2614.1,0.02]
[1750071160970,10.90159222,2614.4,2614.3,3.8251157]
[1750071161199,10.90159222,2614.4,2614.2,3.82516345]
[1750071161350,0.90159222,2614.3,2614.2,3.82516345]
[1750071162172,0.90159222,2614.3,2614.1,3.84537756]
[1750071162384,0.90159222,2614.2,2614.1,3.84537756]
[1750071162585,0.90159222,2614.3,2614.1,3.84537756]
[1750071162765,0.90159222,2614.2,2614.1,3.84537756]
[1750071163166,0.90159222,2614.2,2614.1,0.02]
[1750071163393,0.90159222,2614.2,2614.1,3.84540836]
[1750071164247,9.94201052,2614.2,2614.1,0.02]
[1750071164456,13.0089169,2614.2,2614.1,0.02]
[1750071165666,13.0109427,2614.2,2614.1,0.02]
[1750071167687,13.0109427,2614.2,2614.1,3.84540836]
[1750071168090,9.94403632,2614.2,2614.1,3.84540836]
[1750071168388,0.90361802,2614.2,2614.1,3.84540836]
[1750071170567,10.0418183,2614.4,2614.2,3.82522955]
[1750071170895,10.90388872,2614.3,2614.2,3.82522955]
[1750071172261,10.90388872,2614.3,2614.1,3.84534878]
[1750071172469,0.90388872,2614.2,2614.1,3.84534878]
[1750071172911,6.70523067,2614.2,2614.1,3.84534878]
[1750071178500,6.70523067,2614.2,2614.1,3.84540836]
[1750071178725,6.70523067,2614.2,2614.1,0.02]
[1750071178908,6.89643067,2614.2,2614.1,3.84540836]
[1750071179411,6.70523067,2614.2,2614.1,3.84540836]
[1750071181020,6.70523067,2614.2,2614.1,0.02]
[1750071181526,6.70523067,2614.2,2614.1,3.84540836]
[1750071181836,8.39487374,2614.2,2614.1,3.84540836]
[1750071181996,18.39487374,2614.2,2614.1,0.02]
[1750071182197,19.19727374,2614.2,2614.1,0.02]
[1750071182621,10.90388872,2614.2,2614.1,3.84540836]
[1750071182922,16.70523067,2614.2,2614.1,3.84540836]
[1750071183123,16.70523067,2614.2,2614.1,0.02]
[1750071183486,16.70523067,2614.2,2614.1,3.84540836]
[1750071183735,16.70523067,2614.2,2614.1,0.02]
[1750071183910,18.39487374,2614.2,2614.1,0.02]
[1750071184220,19.19727374,2614.2,2614.1,0.02]
[1750071185308,10.0,2614.1,2614.0,0.2130507]
[1750071185511,11.73528872,2614.1,2614.0,0.2130507]
[1750071185826,15.56069708,2614.1,2614.0,0.2130507]
[1750071185999,10.0,2613.4,2613.2,3.82666014]
[1750071186204,10.1912,2613.2,2613.1,0.02]
[1750071186528,0.1912,2613.2,2613.1,0.02]
[1750071186709,10.0,2613.4,2613.3,3.82657942]
[1750071186912,0.1912,2613.5,2613.4,3.82643299]
[1750071187112,15.99254195,2613.7,2613.6,3.82614018]
[1750071187313,10.0,2613.7,2613.6,3.82614018]
[1750071193562,10.0,2613.7,2613.6,11.91314018]
[1750071196744,10.90467366,2614.1,2613.8,4.61344742]
[1750071196944,10.0,2614.1,2614.0,3.8255547]
[1750071197476,0.1912,2614.2,2614.1,3.82540836]
[1750071199066,19.05192594,2614.3,2614.2,3.82526203]
[1750071199368,22.05067833,2614.3,2614.2,3.82526203]
[1750071201731,22.44291701,2614.3,2614.2,3.82526203]
[1750071204851,13.39099107,2614.3,2614.2,3.82526203]
[1750071205062,10.39223868,2614.3,2614.2,3.82526203]
[1750071206169,0.7714,2614.7,2614.5,3.82469408]
[1750071206469,0.1912,2614.6,2614.5,10.18669408]
[1750071206778,0.1912,2615.0,2614.9,3.82423802]
[1750071207076,12.47820058,2615.0,2614.9,3.82423802]
[1750071207373,12.09474257,2615.0,2614.9,3.82423802]
[1750071207945,0.1912,2615.0,2614.9,3.82423802]
[1750071208274,10.1912,2615.0,2614.9,3.82423802]
[1750071209427,10.1912,2615.0,2614.7,3.82448411]
[1750071209632,10.0,2614.7,2614.6,10.1836146]
[1750071210864,15.98880619,2614.8,2614.7,3.82453053]
[1750071211195,15.79760619,2614.8,2614.7,3.82453053]
[1750071211539,10.0,2614.8,2614.7,3.82453053]
[1750071211851,5.79760619,2615.3,2615.2,3.82379932]
[1750071212163,15.79760619,2615.3,2615.2,10.17979932]
[1750071212364,10.0,2615.3,2615.2,10.17979932]
[1750071213344,0.7636,2615.8,2615.6,3.82313271]
[1750071213553,15.79760619,2615.7,2615.6,3.82313271]
[1750071213860,17.39631087,2615.7,2615.6,3.82313271]
[1750071214260,11.59870468,2615.7,2615.6,3.82313271]
[1750071214483,17.39631087,2615.7,2615.6,3.82313271]
[1750071214969,9.99316258,2615.8,2615.7,3.82306839]
[1750071215170,20.3841819,2615.8,2615.7,3.82306839]
[1750071215847,19.6205819,2615.8,2615.7,10.17606839]
[1750071218175,19.6205819,2615.8,2615.7,3.82306839]
[1750071218482,19.6205819,2615.8,2615.7,10.17006839]
[1750071219296,10.58141932,2615.8,2615.7,10.17006839]
[1750071219476,10.0,2615.8,2615.7,10.94316839]
[1750071219982,0.02,2615.9,2615.8,3.82292224]
[1750071220185,0.02,2615.9,2615.8,4.01332224]
[1750071220544,0.02,2615.9,2615.8,4.05154745]
[1750071220784,0.02,2615.9,2615.8,4.01332224]
[1750071220980,0.02,2615.9,2615.8,4.05154716]
[1750071221190,0.02,2615.9,2615.8,4.01332224]
[1750071221960,0.02,2615.9,2615.8,4.05154615]
[1750071223071,0.02,2615.9,2615.8,4.01332224]
[1750071223273,0.02,2615.9,2615.8,12.03832224]
[1750071223673,7.96167776,2615.8,2615.7,4.78656839]
[1750071223874,7.96167776,2615.8,2615.7,12.80856839]
[1750071226587,7.96167776,2615.8,2615.7,12.80356839]
[1750071226996,7.96167776,2615.8,2615.7,4.78656839]
[1750071227199,7.96167776,2615.8,2615.7,12.80156839]
[1750071228507,7.96167776,2615.8,2615.7,4.78656839]
[1750071228820,7.96167776,2615.8,2615.7,12.79956839]
[1750071230672,7.96167776,2615.8,2615.7,4.01346839]
[1750071230898,17.00084034,2615.8,2615.7,3.82306839]
[1750071231178,17.00084034,2615.8,2615.7,10.18606839]
[1750071231375,7.96167776,2615.8,2615.7,10.18606839]
[1750071231912,19.74202179,2615.8,2615.7,10.18606839]
[1750071232507,17.96167776,2615.8,2615.7,10.18606839]
[1750071234895,23.75501796,2615.8,2615.7,10.18606839]
[1750071235225,10.0,2615.7,2615.2,0.7691]
[1750071235421,10.0,2615.5,2615.4,3.82350692]
[1750071238996,10.0,2615.5,2615.4,11.86050692]
[1750071241031,10.0,2615.5,2615.4,12.05090692]
[1750071241535,23.75501796,2615.8,2615.7,3.82306839]
[1750071241827,23.75501796,2615.8,2615.7,10.17106839]
[1750071241828,17.96167776,2615.8,2615.7,10.17106839]
[1750071242527,17.96167776,2615.8,2615.7,3.82306839]
[1750071242528,25.55318574,2615.8,2615.7,3.82306839]
[1750071242919,26.45812316,2615.8,2615.7,3.82306839]
[1750071243321,18.86661518,2615.8,2615.7,10.17806839]
[1750071243492,17.96167776,2615.8,2615.7,10.17806839]
[1750071244934,7.96167776,2615.8,2615.7,10.96566839]
[1750071245246,7.96167776,2615.8,2615.7,11.15606839]
[1750071246699,7.96167776,2615.8,2615.7,11.70606839]
[1750071248228,7.96167776,2615.8,2615.7,13.39006839]
[1750071250308,7.96167776,2615.8,2615.7,5.35106839]
[1750071251129,7.96167776,2615.8,2615.7,4.80106839]
[1750071251443,7.96167776,2615.8,2615.7,4.01346839]
[1750071252117,7.96167776,2615.8,2615.7,3.82306839]
[1750071252316,7.96167776,2615.8,2615.7,5.50606839]
[1750071253823,7.96167776,2615.8,2615.7,5.69646839]
[1750071255350,7.96167776,2615.8,2615.7,4.01346839]
[1750071258118,13.75501796,2615.8,2615.7,3.82306839]
[1750071258327,7.96167776,2615.8,2615.7,3.82306839]
[1750071258526,7.96167776,2615.8,2615.7,4.01346839]
[1750071265221,13.75501796,2615.8,2615.7,4.01346839]
[1750071265754,13.75501796,2615.8,2615.7,3.82306839]
[1750071270730,7.96167776,2615.8,2615.7,3.82306839]
[1750071275461,9.35821956,2615.8,2615.6,3.82313934]
[1750071275667,6.5666402,2615.7,2615.6,3.82313934]
[1750071276648,16.5666402,2615.7,2615.6,3.82313934]
[1750071277226,15.7933402,2615.7,2615.6,3.82313934]
[1750071277754,10.0,2615.7,2615.6,3.82313934]
[1750071278862,15.7933402,2615.7,2615.6,3.82313934]
[1750071280267,10.0,2615.7,2615.6,3.82313934]
[1750071283175,15.7933402,2615.7,2615.6,3.82313934]
[1750071284263,16.6186402,2615.7,2615.6,3.82313934]
[1750071284574,19.097712,2615.7,2615.6,3.82313934]
[1750071284772,10.0,2615.6,2614.9,0.8207]
[1750071285078,10.0,2615.6,2615.1,3.82394554]
[1750071285079,5.7933402,2615.2,2615.1,3.82394554]
[1750071285582,5.7933402,2615.2,2615.0,3.82409177]
[1750071285740,5.7933402,2615.2,2615.1,3.82394554]
[1750071286937,0.1904,2615.5,2615.3,3.82352821]
[1750071287143,5.7933402,2615.4,2615.3,3.82352821]
[1750071287655,16.39171422,2615.4,2615.3,3.82352821]
[1750071289582,17.21781422,2615.4,2615.3,3.82352821]
[1750071290177,11.42447402,2615.4,2615.0,0.1912]
[1750071290373,1.61487402,2615.4,2615.2,3.82379932]
[1750071290559,1.61487402,2615.4,2615.3,3.82365311]
[1750071290755,7.40821422,2615.4,2615.3,3.82365311]
[1750071291589,10.0,2615.4,2615.3,3.82365311]
[1750071296427,5.9837402,2615.6,2615.5,3.82336073]
[1750071299397,5.9837402,2615.6,2615.4,3.82344499]
[1750071300003,5.9837402,2615.6,2615.5,3.82336073]
[1750071300239,8.54666667,2615.6,2615.5,3.82336073]
[1750071300501,9.45341344,2615.6,2615.5,3.82336073]
[1750071301196,10.0,2615.5,2615.2,3.82373288]
[1750071301389,15.7933402,2615.4,2615.3,3.8235815]
[1750071301577,15.9837402,2615.4,2615.3,3.8235815]
[1750071302723,10.0,2615.3,2615.2,3.82379932]
[1750071303219,6.39360168,2615.4,2615.2,3.82379932]
[1750071303666,6.39360168,2615.4,2615.1,3.82386384]
[1750071303867,5.7933402,2615.2,2615.1,3.82386384]
[1750071306165,5.9837402,2615.4,2615.3,3.82365311]
[1750071306907,5.7933402,2615.4,2615.3,3.82365311]
[1750071308270,15.9837402,2615.5,2615.4,3.82350692]
[1750071308699,10.1904,2615.5,2615.4,3.82350692]
[1750071309479,0.1904,2615.5,2615.4,3.82350692]